bitfinex/quotes_BTCUSD_20250316
["timestamp","ask_amount","ask_price","bid_price","bid_amount"]
[1742136886594,0.01883093,83251.0,83250.0,0.012012]
[1742136886797,0.3,83259.0,83257.0,0.012011]
[1742136887677,0.3,83259.0,83255.0,0.012011]
[1742136888054,0.3,83260.0,83255.0,0.012011]
[1742136888250,0.3,83260.0,83257.0,0.240218]
[1742136888525,0.3,83260.0,83257.0,0.242218]
[1742136888671,0.3,83260.0,83258.0,0.318315]
[1742136888872,0.41310266,83267.0,83260.0,0.240211]
[1742136889089,0.3,83266.0,83262.0,0.01201]
[1742136889854,1.00307,83268.0,83267.0,0.012009]
[1742136889855,0.76288,83268.0,83267.0,0.012009]
[1742136890057,1.06288,83268.0,83267.0,0.012009]
[1742136890495,0.3,83267.0,83266.0,0.240194]
[1742136890855,0.240182,83270.0,83266.0,0.240194]
[1742136890856,0.252186,83272.0,83267.0,0.240189]
[1742136891062,0.012008,83273.0,83269.0,0.240184]
[1742136891480,0.3,83273.0,83271.0,0.240179]
[1742136891693,0.3,83273.0,83271.0,0.252187]
[1742136891897,0.240127,83289.0,83284.0,0.240141]
[1742136892097,0.108212,83290.0,83286.0,0.240136]
[1742136892337,0.0001692,83295.0,83286.0,0.330242]
[1742136893190,0.01955226,83287.0,83286.0,0.330242]
[1742136893399,0.01955226,83287.0,83286.0,0.377242]
[1742136893400,0.00029292,83287.0,83286.0,0.377242]
[1742136894347,0.00129292,83287.0,83286.0,0.377242]
[1742136895008,0.00129292,83287.0,83286.0,0.379242]
[1742136895129,0.00029292,83287.0,83286.0,0.377242]
[1742136895335,0.01911712,83287.0,83286.0,0.377242]
[1742136895536,0.01911712,83287.0,83286.0,0.379242]
[1742136896177,0.01911712,83287.0,83286.0,0.381242]
[1742136897385,0.01911712,83287.0,83286.0,0.379242]
[1742136897584,0.01911712,83287.0,83286.0,0.382242]
[1742136898229,0.00029292,83287.0,83286.0,0.382242]
[1742136899401,0.00029292,83287.0,83286.0,0.377242]
[1742136899802,0.00029292,83287.0,83286.0,0.387242]
[1742136912122,0.01911544,83287.0,83286.0,0.387242]
[1742136913591,0.01911544,83287.0,83286.0,0.01]
[1742136913794,0.03112144,83287.0,83286.0,0.01]
[1742136914418,0.05554652,83287.0,83286.0,0.01]
[1742136914823,0.05554652,83287.0,83286.0,0.005]
[1742136915383,0.252154,83282.0,83281.0,0.38406012]
[1742136916053,0.240169,83275.0,83269.0,0.012009]
[1742136916267,0.240172,83274.0,83269.0,0.252191]
[1742136916804,0.01882659,83273.0,83269.0,0.252191]
[1742136917001,0.240172,83274.0,83269.0,0.252191]
[1742136917207,0.012008,83272.0,83265.0,0.012009]
[1742136917419,0.240171,83274.0,83269.0,0.004]
[1742136917632,0.252191,83270.0,83269.0,0.008]
[1742136917825,0.252191,83270.0,83269.0,0.004]
[1742136919008,0.252191,83270.0,83269.0,0.008]
[1742136919157,0.252191,83270.0,83269.0,0.004]
[1742136919326,0.252191,83270.0,83269.0,0.007]
[1742136919529,0.252191,83270.0,83269.0,0.0031691]
[1742136919774,0.252191,83270.0,83269.0,0.0001691]
[1742136919995,0.252191,83270.0,83269.0,0.0011691]
[1742136920195,0.3,83273.0,83269.0,0.0131781]
[1742136920529,0.540173,83274.0,83269.0,0.0011691]
[1742136920656,0.312008,83274.0,83269.0,0.0001691]
[1742136920845,0.3,83274.0,83269.0,0.2403521]
[1742136921053,0.3,83274.0,83271.0,0.240179]
[1742136921292,0.3,83274.0,83273.0,0.012008]
[1742136921808,0.32392757,83279.0,83274.0,0.252179]
[1742136922221,0.3,83277.0,83274.0,0.252179]
[1742136922482,0.33593457,83279.0,83274.0,0.252179]
[1742136922674,0.3,83277.0,83273.0,0.012008]
[1742136922880,0.3,83277.0,83273.0,0.25018]
[1742136923082,0.3,83277.0,83273.0,0.010008]
[1742136923437,0.301,83277.0,83274.0,0.252177]
[1742136923634,0.001,83277.0,83275.0,0.240166]
[1742136923848,0.32392757,83279.0,83275.0,0.240166]
[1742136924051,0.001,83277.0,83275.0,0.240166]
[1742136924498,0.32392757,83279.0,83274.0,0.012008]
[1742136924698,0.301,83277.0,83274.0,0.012008]
[1742136925439,0.31982695,83277.0,83275.0,0.012008]
[1742136925999,0.01982695,83277.0,83274.0,0.252177]
[1742136926238,0.01882695,83277.0,83274.0,0.252177]
[1742136926618,0.01982695,83277.0,83274.0,0.252177]
[1742136926801,0.01882695,83277.0,83274.0,0.252177]
[1742136927010,0.01882695,83277.0,83275.0,0.240166]
[1742136927398,0.01982695,83277.0,83274.0,0.252177]
[1742136927798,0.01982695,83277.0,83275.0,0.240166]
[1742136928138,0.01882695,83277.0,83275.0,0.252174]
[1742136928304,0.01982695,83277.0,83276.0,0.012008]
[1742136928534,0.01982695,83277.0,83275.0,0.249764]
[1742136928734,0.001,83277.0,83276.0,0.012008]
[1742136929474,0.3,83285.0,83283.0,0.012007]
[1742136929676,0.3,83285.0,83283.0,0.011007]
[1742136929907,0.13328799,83286.0,83284.0,0.240142]
[1742136930067,0.00029292,83287.0,83284.0,0.240142]
[1742136930267,0.00029292,83287.0,83284.0,0.252149]
[1742136930470,0.00029292,83287.0,83284.0,0.251149]
[1742136931141,0.003,83285.0,83284.0,0.251149]
[1742136931301,0.21251403,83289.0,83284.0,0.251149]
[1742136931503,0.21255524,83289.0,83284.0,0.252149]
[1742136931947,0.240137,83286.0,83284.0,0.001]
[1742136932158,0.240143,83284.0,83278.0,0.240157]
[1742136932384,0.240143,83284.0,83277.0,0.012008]
[1742136932385,0.252153,83283.0,83281.0,0.0001691]
[1742136933604,0.27097865,83283.0,83281.0,0.0001691]
[1742136933823,0.27097865,83283.0,83281.0,0.0021691]
[1742136934386,0.012007,83282.0,83281.0,0.0021691]
[1742136935166,0.012006,83291.0,83281.0,0.0021691]
[1742136935320,0.2402833,83294.0,83287.0,0.24013]
[1742136935321,0.2522883,83294.0,83287.0,0.24013]
[1742136935514,0.24016821,83289.0,83282.0,0.012007]
[1742136935721,0.012006,83286.0,83281.0,0.0021691]
[1742136935964,0.012006,83287.0,83281.0,0.0021691]
[1742136936306,0.012006,83287.0,83281.0,0.0031691]
[1742136936786,0.25214,83287.0,83282.0,0.240146]
[1742136937620,0.252154,83282.0,83281.0,0.0011691]
[1742136937806,0.012006,83286.0,83281.0,0.0001691]
[1742136938426,0.240139,83285.0,83281.0,0.0001691]
[1742136938728,0.252151,83284.0,83281.0,0.0001691]
[1742136938937,0.01204721,83289.0,83284.0,0.240142]
[1742136939586,0.252136,83288.0,83283.0,0.012007]
[1742136940576,0.252136,83288.0,83283.0,0.25215]
[1742136941457,0.252136,83288.0,83284.0,0.240141]
[1742136942132,0.240135,83287.0,83282.0,0.240146]
[1742136942338,0.240138,83286.0,83281.0,0.0001691]
[1742136942532,0.252144,83286.0,83281.0,0.0001691]
[1742136942738,0.24014,83285.0,83281.0,0.0001691]
[1742136943847,0.24014,83285.0,83281.0,0.2403181]
[1742136944539,0.24014,83285.0,83281.0,0.2413181]
[1742136944937,0.012006,83288.0,83284.0,0.2404792]
[1742136946411,0.01882484,83288.0,83286.0,0.240136]
[1742136946612,0.01882484,83288.0,83286.0,0.252142]
[1742136947716,0.01882484,83288.0,83287.0,0.012006]
[1742136947840,0.00021031,83289.0,83288.0,0.252136]
[1742136948062,0.00021031,83289.0,83288.0,0.327136]
[1742136950871,0.00021031,83289.0,83288.0,0.374236]
[1742136951722,0.00021031,83289.0,83288.0,0.375236]
[1742136952139,0.00021031,83289.0,83288.0,0.381236]
[1742136953170,0.00021031,83289.0,83288.0,0.378236]
[1742136953339,0.00021031,83289.0,83288.0,0.384236]
[1742136955461,0.00021031,83289.0,83288.0,0.521236]
[1742136956147,0.00021031,83289.0,83288.0,0.384236]
[1742136956352,0.00021031,83289.0,83288.0,0.521236]
[1742136957439,0.00021031,83289.0,83288.0,0.384236]
[1742136957637,0.00021031,83289.0,83288.0,0.309236]
[1742136959556,0.00021031,83289.0,83288.0,0.264136]
[1742136959749,0.00021031,83289.0,83288.0,0.018006]
[1742136959994,0.00021031,83289.0,83288.0,0.017006]
[1742136960126,0.00021031,83289.0,83288.0,0.022006]
[1742136962502,0.22639173,83299.0,83294.0,0.012005]
[1742136962908,0.21438773,83299.0,83294.0,0.012005]
[1742136963104,0.2696714,83306.0,83299.0,0.012004]
[1742136963313,0.0175904,83306.0,83303.0,0.240086]
[1742136963510,6.435e-05,83306.0,83303.0,0.240086]
[1742136963966,0.01791309,83306.0,83302.0,0.012004]
[1742136964171,0.01791309,83306.0,83302.0,0.252093]
[1742136965280,0.01791309,83306.0,83304.0,0.252087]
[1742136965685,0.01791309,83306.0,83305.0,0.012004]
[1742136967294,0.01791309,83306.0,83305.0,0.013004]
[1742136967508,0.01791309,83306.0,83305.0,0.012004]
[1742136967909,0.01791309,83306.0,83305.0,0.013004]
[1742136968154,0.01791309,83306.0,83305.0,0.015004]
[1742136969138,6.435e-05,83306.0,83305.0,0.015004]
[1742136969796,0.00023345,83306.0,83305.0,0.015004]
[1742136971606,3e-07,83344.0,83343.0,0.25197]
[1742136971807,3e-07,83344.0,83343.0,0.51573]
[1742136972194,0.00041279,83344.0,83343.0,0.51573]
[1742136972404,7.9e-07,83344.0,83343.0,0.53027085]
[1742136972633,7.9e-07,83344.0,83343.0,0.54717264]
[1742136973201,7.9e-07,83344.0,83343.0,0.53027085]
[1742136973607,7.9e-07,83344.0,83343.0,0.53227085]
[1742136973800,7.9e-07,83344.0,83343.0,0.53027085]
[1742136974168,7.9e-07,83344.0,83343.0,0.53427085]
[1742136974368,7.9e-07,83344.0,83343.0,0.53627085]
[1742136974808,7.9e-07,83344.0,83343.0,0.53427085]
[1742136975461,0.108212,83360.0,83359.0,0.011996]
[1742136975462,0.00879939,83360.0,83359.0,0.011996]
[1742136975616,3.9e-07,83360.0,83359.0,0.28119534]
[1742136975823,3.9e-07,83360.0,83359.0,0.29453685]
[1742136975824,6e-08,83360.0,83359.0,0.29453685]
[1742136976637,6e-08,83360.0,83359.0,0.67859697]
[1742136977413,6e-08,83360.0,83359.0,0.68759697]
[1742136977568,6e-08,83360.0,83359.0,0.68259697]
[1742136978874,6e-08,83360.0,83359.0,0.68759697]
[1742136980998,6e-08,83360.0,83359.0,0.68793497]
[1742136981361,0.00016906,83360.0,83359.0,0.68793497]
[1742136981559,0.00016906,83360.0,83359.0,0.68293497]
[1742136981732,0.00016906,83360.0,83359.0,0.68493497]
[1742136982337,0.00016906,83360.0,83359.0,0.69093497]
[1742136983761,0.00016906,83360.0,83359.0,0.55373497]
[1742136984082,0.00016906,83360.0,83359.0,0.69165497]
[1742136984436,6e-08,83360.0,83359.0,0.99165497]
[1742136984581,2.6e-07,83373.0,83372.0,0.334882]
[1742136984799,2.6e-07,83373.0,83372.0,0.73348297]
[1742136985807,2.6e-07,83373.0,83372.0,0.73748297]
[1742136986012,2.6e-07,83373.0,83372.0,0.74248297]
[1742136986332,2.6e-07,83373.0,83372.0,0.80698408]
[1742136986533,0.00481971,83383.0,83382.0,0.251851]
[1742136986740,0.00481971,83383.0,83382.0,0.389771]
[1742136987180,7.1e-07,83383.0,83382.0,0.87137197]
[1742136987381,7.1e-07,83383.0,83382.0,0.99084347]
[1742136987793,8.1e-07,83390.0,83389.0,0.094991]
[1742136988014,8.1e-07,83390.0,83389.0,0.68827766]
[1742136988227,3.8e-07,83390.0,83389.0,0.99207893]
[1742136989031,3.8e-07,83390.0,83389.0,0.9393368]
[1742136989253,3.8e-07,83390.0,83389.0,0.68547197]
[1742136989653,3.8e-07,83390.0,83389.0,0.76448743]
[1742136989853,3.8e-07,83390.0,83389.0,0.99047197]
[1742136990083,3.8e-07,83390.0,83389.0,1.03637913]
[1742136990286,3.8e-07,83390.0,83389.0,1.11039459]
[1742136990487,0.001,83424.0,83423.0,0.251729]
[1742136990736,0.00107914,83424.0,83423.0,0.389889]
[1742136991687,0.00107914,83424.0,83423.0,0.390889]
[1742136992100,0.00107914,83424.0,83423.0,0.389889]
[1742136992506,0.00107914,83424.0,83423.0,0.393889]
[1742136992874,0.00107914,83424.0,83423.0,0.255729]
[1742136993175,0.00124814,83424.0,83423.0,0.393889]
[1742136993493,0.00124814,83424.0,83423.0,0.396889]
[1742136993905,1.4e-07,83424.0,83423.0,0.82894912]
[1742136994069,0.05,83527.0,83445.0,0.3]
[1742136994263,0.05,83527.0,83426.0,0.05]
[1742136994264,0.03634918,83546.0,83519.0,0.005]
[1742136994472,0.03634918,83546.0,83542.0,0.01177008]
[1742136994707,0.03634918,83546.0,83534.0,0.011971]
[1742136994708,0.239394,83544.0,83534.0,0.011971]
[1742136994945,0.239394,83544.0,83519.0,0.38406012]
[1742136994946,0.05345277,83546.0,83542.0,0.251365]
[1742136995148,0.05345277,83546.0,83537.0,0.251384]
[1742136995365,0.05345277,83546.0,83532.0,0.011971]
[1742136995627,0.05345277,83546.0,83537.0,0.01197]
[1742136995812,0.005,83581.0,83569.0,0.011966]
[1742136995986,0.0008,83589.0,83574.0,0.011965]
[1742136996212,0.011963,83587.0,83575.0,0.00119626]
[1742136996343,0.250307,83563.0,83562.0,0.0011962]
[1742136996542,0.011966,83566.0,83548.0,0.02770639]
[1742136996743,0.239409,83539.0,83521.0,0.6925]
[1742136996985,0.011968,83554.0,83538.0,0.01197]
[1742136997198,0.01197,83540.0,83535.0,0.048]
[1742136997403,0.01197,83538.0,83520.0,0.011973]
[1742136997621,0.01197,83539.0,83526.0,0.011972]
[1742136997743,0.3,83539.0,83521.0,0.011973]
[1742136997944,0.239397,83544.0,83533.0,0.011971]
[1742136998184,0.011968,83550.0,83534.0,0.00119692]
[1742136998185,0.3,83543.0,83534.0,0.00119692]
[1742136998388,0.239408,83540.0,83532.0,0.011971]
[1742136998584,0.239381,83549.0,83534.0,0.011971]
[1742136998808,0.31894241,83580.0,83551.0,0.011968]
[1742136998809,0.239346,83561.0,83551.0,0.011968]
[1742136999002,0.239323,83569.0,83558.0,0.011967]
[1742136999206,0.239342,83563.0,83553.0,0.011968]
[1742136999405,0.00012367,83538.0,83519.0,0.239463]
[1742136999711,0.00012367,83538.0,83537.0,0.01197]
[1742136999913,0.00012367,83538.0,83537.0,0.0011967]
[1742137000116,0.00012367,83538.0,83537.0,0.01197]
[1742137000326,0.00012367,83538.0,83537.0,0.01316682]
[1742137000650,0.00012367,83538.0,83523.0,0.011972]
[1742137000867,0.011971,83534.0,83516.0,0.011973]
[1742137001096,0.00012367,83538.0,83519.0,0.011973]
[1742137001295,0.011971,83534.0,83510.0,0.011974]
[1742137001531,0.239511,83504.0,83495.0,0.239533]
[1742137001732,0.26894241,83510.0,83493.0,0.011977]
[1742137001963,0.26894241,83510.0,83494.0,0.01317344]
[1742137001964,0.239506,83505.0,83494.0,0.01317344]
[1742137002252,0.239523,83499.0,83494.0,0.00119744]
[1742137002458,0.239523,83499.0,83485.0,0.239563]
[1742137002459,0.239538,83494.0,83489.0,0.011977]
[1742137002661,0.011976,83494.0,83472.0,0.01198]
[1742137002861,0.011976,83494.0,83464.0,0.048]
[1742137002862,0.26894241,83482.0,83466.0,0.239618]
[1742137003001,0.011978,83480.0,83457.0,0.011982]
[1742137003206,0.239632,83462.0,83457.0,0.00119792]
[1742137003520,0.239617,83467.0,83457.0,0.239644]
[1742137003726,0.239617,83467.0,83459.0,0.011981]
[1742137003951,0.239617,83467.0,83460.0,0.011981]
[1742137004323,0.239617,83467.0,83459.0,0.011981]
[1742137004526,0.2397405,83467.0,83459.0,0.011981]
[1742137004730,0.239628,83463.0,83454.0,0.251633]
[1742137004956,0.239639,83459.0,83445.0,0.011983]
[1742137005156,0.23966,83452.0,83444.0,0.1077426]
[1742137005333,0.23966,83452.0,83444.0,0.011984]
[1742137005588,0.239669,83449.0,83441.0,0.011984]
[1742137005766,0.26894241,83451.0,83445.0,0.011983]
[1742137005965,0.239656,83453.0,83445.0,0.011983]
[1742137006147,0.239656,83453.0,83448.0,0.011983]
[1742137006344,0.00912077,83484.0,83456.0,0.011982]
[1742137006345,0.3,83463.0,83456.0,0.011982]
[1742137006543,0.3,83463.0,83447.0,0.239672]
[1742137006544,0.239637,83460.0,83447.0,0.239672]
[1742137006864,0.011982,83455.0,83442.0,0.011984]
[1742137007066,0.239654,83454.0,83443.0,0.0011982]
[1742137007273,0.26894241,83452.0,83442.0,0.011984]
[1742137007582,0.26894241,83452.0,83448.0,0.251652]
[1742137007760,0.001,83452.0,83448.0,0.251652]
[1742137007964,0.001,83452.0,83445.0,0.251661]
[1742137008185,0.239654,83454.0,83445.0,0.251661]
[1742137008186,0.239649,83456.0,83450.0,0.011983]
[1742137008389,0.3,83464.0,83457.0,0.011982]
[1742137008609,0.0001235,83467.0,83464.0,0.239624]
[1742137008803,0.0001235,83467.0,83466.0,0.251598]
[1742137010465,5e-07,83467.0,83466.0,0.251598]
[1742137010674,5e-07,83467.0,83466.0,0.69723885]
[1742137010831,0.2516349,83510.0,83504.0,0.251484]
[1742137011025,0.0001689,83510.0,83505.0,0.011975]
[1742137011230,0.0001689,83510.0,83504.0,0.251484]
[1742137011231,0.30029238,83510.0,83504.0,0.251484]
[1742137011436,0.239495,83509.0,83503.0,0.239511]
[1742137011641,0.00029238,83510.0,83503.0,0.251486]
[1742137011913,0.00029238,83510.0,83506.0,0.239503]
[1742137012125,0.00129238,83510.0,83509.0,0.251469]
[1742137012394,0.00029238,83510.0,83509.0,0.251469]
[1742137012878,0.00029238,83510.0,83497.0,0.011976]
[1742137012879,0.011975,83505.0,83497.0,0.011976]
[1742137013079,0.26923479,83510.0,83502.0,0.251488]
[1742137013344,0.00029238,83510.0,83502.0,0.251488]
[1742137013879,0.011974,83509.0,83502.0,0.011975]
[1742137014078,0.239505,83506.0,83500.0,0.251496]
[1742137014274,0.011975,83504.0,83496.0,0.23953]
[1742137014490,0.011975,83503.0,83496.0,0.251506]
[1742137014894,0.011975,83503.0,83497.0,0.011976]
[1742137015301,0.011976,83500.0,83491.0,0.251521]
[1742137015628,0.011976,83500.0,83468.0,0.479225]
[1742137015629,0.251534,83488.0,83470.0,0.38406012]
[1742137015825,0.251534,83488.0,83481.0,0.011978]
[1742137016025,0.00892594,83506.0,83464.0,0.0485]
[1742137016026,0.01226638,83510.0,83501.0,0.011975]
[1742137016322,0.00029238,83510.0,83506.0,0.251477]
[1742137016525,0.00029238,83510.0,83509.0,0.011974]
[1742137016726,0.00029238,83510.0,83507.0,0.011975]
[1742137016928,0.011975,83506.0,83494.0,0.239537]
[1742137017128,0.011975,83504.0,83492.0,0.011977]
[1742137017348,0.011975,83507.0,83492.0,0.011977]
[1742137017349,0.3,83501.0,83497.0,0.251503]
[1742137017530,0.3,83501.0,83494.0,0.011976]
[1742137017764,0.3,83498.0,83494.0,0.011976]
[1742137017997,0.3,83498.0,83497.0,0.011976]
[1742137018229,0.00029238,83510.0,83509.0,0.251469]
[1742137018635,0.00229238,83510.0,83509.0,0.251469]
[1742137019028,0.00029238,83510.0,83509.0,0.251469]
[1742137020278,3.8e-07,83510.0,83509.0,0.251469]
[1742137020623,3.8e-07,83510.0,83509.0,0.56600985]
[1742137021776,3.8e-07,83510.0,83509.0,0.57200985]
[1742137022206,3.8e-07,83510.0,83509.0,0.56600985]
[1742137022399,3.8e-07,83510.0,83509.0,0.57200985]
[1742137022944,3.8e-07,83510.0,83509.0,0.56600985]
[1742137023387,3.8e-07,83510.0,83509.0,2.07200985]
[1742137023600,3.8e-07,83510.0,83509.0,0.57200985]
[1742137024614,3.8e-07,83510.0,83509.0,0.95606997]
[1742137024815,3.8e-07,83510.0,83509.0,0.95006997]
[1742137025226,0.01197,83537.0,83532.0,0.011971]
[1742137025458,0.239429,83533.0,83527.0,0.011972]
[1742137025668,0.00012341,83537.0,83532.0,0.011971]
[1742137025852,0.25703652,83536.0,83530.0,0.011971]
[1742137026149,0.25703652,83536.0,83527.0,0.011972]
[1742137026150,0.011971,83533.0,83527.0,0.011972]
[1742137026326,0.011971,83533.0,83527.0,0.251413]
[1742137026534,0.011971,83533.0,83532.0,0.004]
[1742137026733,0.011971,83531.0,83524.0,0.251423]
[1742137026896,0.011971,83531.0,83519.0,0.251436]
[1742137026897,0.239444,83527.0,83519.0,0.251436]
[1742137027100,0.43783837,83530.0,83525.0,0.25142]
[1742137027300,0.011972,83526.0,83520.0,0.011973]
[1742137027512,0.011972,83528.0,83523.0,0.251425]
[1742137027716,0.3,83532.0,83525.0,0.239446]
[1742137028179,0.3,83532.0,83530.0,0.001]
[1742137028413,0.311971,83532.0,83530.0,0.001]
[1742137028605,0.011971,83532.0,83527.0,0.011972]
[1742137028822,0.00012341,83537.0,83531.0,0.239432]
[1742137029050,0.00012341,83537.0,83533.0,0.011971]
[1742137029259,0.00012341,83537.0,83536.0,0.01197]
[1742137031200,0.00012341,83537.0,83536.0,0.01316692]
[1742137031776,0.00012341,83537.0,83536.0,0.01616692]
[1742137032188,0.00012341,83537.0,83536.0,0.01197]
[1742137032409,0.00012341,83537.0,83536.0,0.01497]
[1742137033024,0.00012341,83537.0,83534.0,0.239423]
[1742137033025,0.00012341,83537.0,83534.0,0.251392]
[1742137033261,0.00012341,83537.0,83536.0,0.006]
[1742137033437,0.00012341,83537.0,83536.0,0.01197]
[1742137033937,0.24062636,83537.0,83532.0,0.251399]
[1742137034089,0.00012341,83537.0,83532.0,0.251399]
[1742137034290,0.00012341,83537.0,83529.0,0.239436]
[1742137034500,0.00012341,83537.0,83529.0,0.011971]
[1742137034700,0.011971,83532.0,83524.0,0.011972]
[1742137035056,0.011971,83532.0,83526.0,0.011972]
[1742137035194,0.239432,83531.0,83526.0,0.251416]
[1742137035400,0.251402,83532.0,83529.0,0.004]
[1742137035773,0.01876881,83530.0,83529.0,0.015971]
[1742137036161,0.01989736,83530.0,83529.0,0.015971]
[1742137036339,0.00112855,83530.0,83529.0,0.011971]
[1742137036705,0.251378,83540.0,83534.0,0.011971]
[1742137036836,0.01197,83539.0,83534.0,0.011971]
[1742137037052,0.00102329,83536.0,83534.0,0.011971]
[1742137037453,0.00102329,83536.0,83533.0,0.239425]
[1742137037651,0.00102329,83536.0,83533.0,0.251396]
[1742137038109,0.251383,83538.0,83533.0,0.251396]
[1742137038322,0.00103703,83535.0,83534.0,0.251392]
[1742137038519,0.251379,83540.0,83534.0,0.251392]
[1742137038724,0.251381,83539.0,83533.0,0.011971]
[1742137039043,0.24509955,83536.0,83533.0,0.002]
[1742137039273,0.011971,83534.0,83533.0,0.002]
[1742137039514,0.251411,83529.0,83524.0,0.239449]
[1742137039983,0.011972,83526.0,83493.0,0.479081]
[1742137040211,0.00462754,83528.0,83517.0,0.251442]
[1742137040410,0.3,83534.0,83530.0,0.239432]
[1742137040615,0.3,83534.0,83529.0,0.251406]
[1742137040820,0.3,83534.0,83532.0,0.239427]
[1742137040957,0.3,83534.0,83531.0,0.011971]
[1742137041163,0.3,83534.0,83533.0,0.011971]
[1742137041526,0.00012341,83537.0,83531.0,0.011971]
[1742137041527,0.53953941,83537.0,83531.0,0.011971]
[1742137041869,0.01197,83536.0,83531.0,0.011971]
[1742137042070,0.3,83534.0,83533.0,0.002]
[1742137042323,0.3,83534.0,83530.0,0.251403]
[1742137042522,0.3,83534.0,83532.0,0.2514]
[1742137042935,0.00595863,83538.0,83533.0,0.239424]
[1742137043104,0.00595863,83538.0,83533.0,0.23983654]
[1742137043305,0.24537163,83538.0,83533.0,0.24083654]
[1742137043541,0.01197,83539.0,83534.0,0.251392]
[1742137043865,0.239396,83544.0,83535.0,0.251389]
[1742137044091,0.251365,83544.0,83539.0,0.239407]
[1742137044245,0.251368,83543.0,83538.0,0.251381]
[1742137044423,0.251368,83543.0,83537.0,0.01197]
[1742137044608,0.251368,83543.0,83537.0,0.251383]
[1742137044813,0.239402,83542.0,83537.0,0.251383]
[1742137045012,0.27013992,83542.0,83537.0,0.251383]
[1742137045211,0.239405,83541.0,83537.0,0.01197]
[1742137045484,0.239408,83540.0,83535.0,0.251389]
[1742137045670,0.251375,83541.0,83536.0,0.239415]
[1742137045894,0.251375,83541.0,83535.0,0.251389]
[1742137046600,0.03073792,83542.0,83536.0,0.251385]
[1742137046809,0.00103389,83540.0,83536.0,0.251385]
[1742137047010,0.0010317,83541.0,83536.0,0.251385]
[1742137047159,0.00103608,83539.0,83536.0,0.252385]
[1742137047373,0.00103827,83538.0,83536.0,0.252385]
[1742137047558,0.27013992,83542.0,83536.0,0.252385]
[1742137047761,0.01197,83540.0,83536.0,0.001]
[1742137048225,0.00103608,83539.0,83536.0,0.001]
[1742137048453,0.01197,83540.0,83534.0,0.251394]
[1742137048880,0.01197,83537.0,83533.0,0.00041254]
[1742137049237,0.251386,83537.0,83533.0,0.00041254]
[1742137049436,0.239416,83537.0,83536.0,0.001]
[1742137049599,0.01197,83540.0,83536.0,0.001]
[1742137049800,0.251377,83540.0,83534.0,0.251391]
[1742137050005,0.251378,83540.0,83535.0,0.239419]
[1742137050227,0.251378,83540.0,83536.0,0.239416]
[1742137050913,0.251378,83540.0,83535.0,0.011971]
[1742137051387,0.011971,83534.0,83533.0,0.00041254]
[1742137051591,0.251394,83534.0,83533.0,0.00041254]
[1742137054191,0.2701659,83534.0,83533.0,0.00041254]
[1742137056014,0.5721659,83534.0,83533.0,0.00041254]
[1742137056142,1.0512409,83534.0,83533.0,0.00041254]
[1742137056347,1.0241009,83534.0,83533.0,0.00041254]
[1742137056753,1.0241009,83534.0,83533.0,5.4e-07]
[1742137056953,0.556421,83525.0,83524.0,1.4e-07]
[1742137060034,0.57096185,83525.0,83524.0,1.4e-07]
[1742137060237,0.68334074,83525.0,83524.0,1.4e-07]
[1742137060438,0.68834074,83525.0,83524.0,1.4e-07]
[1742137060669,0.73834074,83525.0,83524.0,1.4e-07]
[1742137061271,0.87162873,83525.0,83524.0,1.4e-07]
[1742137061698,0.89653887,83525.0,83524.0,1.4e-07]
[1742137061845,0.256466,83510.0,83509.0,0.0003374]
[1742137062044,0.955772,83510.0,83509.0,0.0003374]
[1742137062308,0.55234545,83510.0,83509.0,0.0003374]
[1742137063840,0.55434545,83510.0,83509.0,0.0003374]
[1742137064071,0.86761245,83510.0,83509.0,0.0003374]
[1742137064345,0.83081071,83510.0,83509.0,0.0003374]
[1742137064547,0.57312271,83510.0,83509.0,0.0003374]
[1742137065922,0.239548,83491.0,83485.0,0.2298774]
[1742137066274,0.239548,83491.0,83481.0,0.011978]
[1742137066275,0.01287941,83490.0,83481.0,0.011978]
[1742137066475,0.011978,83486.0,83480.0,0.251553]
[1742137066650,0.239566,83485.0,83476.0,0.239589]
[1742137066859,0.011978,83483.0,83474.0,0.088879]
[1742137067212,0.251549,83483.0,83477.0,0.251563]
[1742137067361,0.239574,83482.0,83477.0,0.251563]
[1742137067567,0.00544848,83484.0,83479.0,0.251559]
[1742137068148,0.01742648,83484.0,83479.0,0.23958]
[1742137068349,0.239571,83483.0,83477.0,0.251564]
[1742137068574,0.239574,83482.0,83477.0,0.251564]
[1742137068750,0.239595,83475.0,83469.0,0.297988]
[1742137068956,0.251577,83474.0,83469.0,0.286008]
[1742137069353,0.251569,83476.0,83470.0,0.239605]
[1742137069555,0.011978,83481.0,83471.0,0.01198]
[1742137069753,0.239572,83482.0,83478.0,0.239581]
[1742137069981,0.00544848,83484.0,83483.0,0.011978]
[1742137070366,0.00041104,83486.0,83485.0,0.011978]
[1742137071771,4e-08,83486.0,83485.0,0.52643581]
[1742137071910,4e-08,83486.0,83485.0,0.52523812]
[1742137072320,4e-08,83486.0,83485.0,0.141178]
[1742137072520,4e-08,83486.0,83485.0,0.142178]
[1742137073057,4e-08,83486.0,83485.0,0.141178]
[1742137073248,0.00100004,83486.0,83485.0,0.141178]
[1742137075159,0.00100004,83486.0,83485.0,0.14237561]
[1742137075356,0.00100004,83486.0,83485.0,0.141178]
[1742137076788,0.00100004,83486.0,83485.0,0.14237563]
[1742137078995,0.00100004,83486.0,83485.0,0.141178]
[1742137079199,0.00100004,83486.0,83485.0,0.14237554]
[1742137080411,0.00100004,83486.0,83485.0,0.14271414]
[1742137080650,0.00100004,83486.0,83485.0,0.1415166]
[1742137081426,0.00100004,83486.0,83485.0,0.0003386]
[1742137081630,0.00100004,83486.0,83485.0,0.0123166]
[1742137081831,0.01977713,83486.0,83485.0,0.0003386]
[1742137082380,0.2767817,83486.0,83485.0,0.0003386]
[1742137083260,0.2757817,83486.0,83485.0,0.0003386]
[1742137083462,0.2757817,83486.0,83485.0,0.0013386]
[1742137083899,0.2757817,83486.0,83485.0,0.0003386]
[1742137084305,0.4551277,83486.0,83485.0,0.0003386]